fUST/lending_fUST_20250216
["ID","MTS","AMOUNT","RATE_DAILY","PERIOD"]
[353212834,1739656232077,-300.0,8.846e-05,2]
[353212836,1739656232087,-500.0,8.847e-05,2]
[353212838,1739656232096,-500.0,8.847e-05,2]
[353212840,1739656232106,-500.0,8.847e-05,2]
[353212842,1739656232116,-500.0,8.847e-05,2]
[353212844,1739656232126,-586.53427266,8.847e-05,2]
[353212846,1739656232137,-1679.37,8.847e-05,2]
[353212849,1739656232147,-311.19698643,8.847e-05,2]
[353212851,1739656232156,-500.0,8.847e-05,2]
[353212853,1739656232166,-500.0,8.847e-05,2]
[353212855,1739656232176,-500.0,8.847e-05,2]
[353212857,1739656232186,-3596.98,8.847e-05,2]
[353212859,1739656232195,-527.15046356,8.847e-05,2]
[353212860,1739656232205,-500.0,8.847e-05,2]
[353212863,1739656232214,-288.1107771,8.847e-05,2]
[353212865,1739656232226,-211.8892229,8.847e-05,2]
[353212867,1739656232235,-258.83943657,8.847e-05,2]
[353212870,1739656232254,-241.16056343,8.847e-05,2]
[353212872,1739656232264,-500.0,8.847e-05,2]
[353212874,1739656232273,-500.0,8.847e-05,2]
[353212876,1739656232283,-2166.99,8.847e-05,2]
[353212878,1739656232293,-500.0,8.847e-05,2]
[353212880,1739656232303,-645.56,8.847e-05,2]
[353212882,1739656232312,-2048.78,8.847e-05,2]
[353212884,1739656232322,-500.0,8.847e-05,2]
[353212886,1739656232332,-5462.0,8.847e-05,2]
[353212888,1739656232341,-1326.87,8.847e-05,2]
[353212890,1739656232351,-796.68,8.847e-05,2]
[353212892,1739656232361,-1112.34,8.847e-05,2]
[353212894,1739656232371,-2571.58,8.847e-05,2]
[353212896,1739656232381,-500.0,8.847e-05,2]
[353212898,1739656232390,-500.0,8.847e-05,2]
[353212900,1739656232400,-558.58,8.847e-05,2]
[353212902,1739656232410,-594.53,8.847e-05,2]
[353212904,1739656232419,-500.0,8.847e-05,2]
[353212906,1739656232429,-500.0,8.847e-05,2]
[353212908,1739656232438,-812.52,8.847e-05,2]
[353212910,1739656232448,-500.0,8.848e-05,2]
[353212912,1739656232458,-500.0,8.848e-05,2]
[353212914,1739656232468,-1032.14,8.848e-05,2]
[353212917,1739656232478,-500.0,8.848e-05,2]
[353212919,1739656232488,-454.62516878,8.848e-05,2]
[353212921,1739656232497,-934.7,8.848e-05,2]
[353212923,1739656232507,-989.97,8.848e-05,2]
[353212925,1739656232517,-500.0,8.848e-05,2]
[353212927,1739656232526,-527.39,8.848e-05,2]
[353212929,1739656232536,-500.0,8.848e-05,2]
[353212931,1739656232546,-1487.18,8.848e-05,2]
[353212933,1739656232557,-950.26,8.848e-05,2]
[353212935,1739656232570,-500.0,8.848e-05,2]
[353212937,1739656232579,-500.0,8.848e-05,2]
[353212939,1739656232588,-500.0,8.848e-05,2]
[353212941,1739656232598,-500.0,8.848e-05,2]
[353212943,1739656232608,-500.0,8.848e-05,2]
[353212945,1739656232617,-1001.41,8.848e-05,2]
[353212947,1739656232627,-184.26938441,8.848e-05,2]
[353212949,1739656232638,-335.4083633,8.848e-05,2]
[353212951,1739656232647,-500.0,8.848e-05,2]
[353212953,1739656232657,-213.2,8.848e-05,2]
[353212955,1739656232667,-1518.25,8.848e-05,2]
[353212957,1739656232677,-500.0,8.848e-05,2]
[353212959,1739656232688,-500.0,8.848e-05,2]
[353212961,1739656232698,-1784.82,8.848e-05,2]
[353212963,1739656232707,-1020.72,8.848e-05,2]
[353212965,1739656232717,-1007.17,8.848e-05,2]
[353212967,1739656232727,-892.89,8.848e-05,2]
[353212969,1739656232737,-2780.24,8.848e-05,2]
[353212971,1739656232746,-4604.19,8.848e-05,2]
[353212973,1739656232756,-500.0,8.848e-05,2]
[353212975,1739656232765,-500.0,8.848e-05,2]
[353212977,1739656232775,-500.0,8.848e-05,2]
[353212979,1739656232784,-974.79,8.848e-05,2]
[353212981,1739656232795,-524.1,8.848e-05,2]
[353212983,1739656232805,-622.59,8.848e-05,2]
[353212985,1739656232814,-3241.39,8.848e-05,2]
[353212987,1739656232824,-500.0,8.848e-05,2]
[353212989,1739656232833,-1107.07,8.848e-05,2]
[353212991,1739656232843,-1086.76,8.848e-05,2]
[353212993,1739656232852,-500.0,8.848e-05,2]
[353212995,1739656232862,-1765.86,8.848e-05,2]
[353212997,1739656232871,-22706.99720008,8.848e-05,2]
[353213000,1739656232883,-10014.40857824,8.848e-05,2]
[353213173,1739656235205,161.88374919,8.843e-05,2]
[353213205,1739656237984,-500.0,8.847e-05,2]
[353213206,1739656237994,-965.21,8.847e-05,2]
[353213207,1739656238004,-4422.88422168,8.848e-05,2]
[353213208,1739656238014,-1392.48,8.848e-05,2]
[353213209,1739656238024,-500.0,8.848e-05,2]
[353213210,1739656238034,-500.0,8.848e-05,2]
[353213211,1739656238044,-2145.53,8.848e-05,2]
[353213212,1739656238055,-1127.38,8.848e-05,2]
[353213213,1739656238064,-500.0,8.848e-05,2]
[353213215,1739656238073,-695.72,8.848e-05,2]
[353213217,1739656238083,-1483.83,8.848e-05,2]
[353213218,1739656238094,-1406.54,8.848e-05,2]
[353213219,1739656238104,-1873.03,8.848e-05,2]
[353213220,1739656238114,-971.74,8.848e-05,2]
[353213221,1739656238124,-829.91,8.848e-05,2]
[353213222,1739656238133,-789.16,8.848e-05,2]
[353213223,1739656238143,-527.39744604,8.848e-05,2]
[353213224,1739656238153,-534.41,8.848e-05,2]
[353213225,1739656238163,-500.0,8.848e-05,2]
[353213226,1739656238173,-603.53,8.848e-05,2]
[353213227,1739656238183,-500.0,8.848e-05,2]
[353213228,1739656238193,-500.0,8.848e-05,2]
[353213229,1739656238203,-664.14,8.848e-05,2]
[353213230,1739656238213,-500.0,8.848e-05,2]
[353213231,1739656238223,-710.96,8.848e-05,2]
[353213232,1739656238232,-575.79,8.848e-05,2]
[353213233,1739656238242,-1286.54,8.848e-05,2]
[353213234,1739656238252,-833.84347879,8.848e-05,2]
[353213235,1739656238265,-293.09652121,8.848e-05,2]
[353213236,1739656238274,-128.9339844,8.848e-05,2]
[353213237,1739656238286,-371.0660156,8.848e-05,2]
[353213238,1739656238296,-500.0,8.848e-05,2]
[353213239,1739656238307,-822.86,8.848e-05,2]
[353213240,1739656238317,-657.46370776,8.848e-05,2]
[353213241,1739656238329,-12.71629224,8.848e-05,2]
[353213242,1739656238339,-500.0,8.848e-05,2]
[353213243,1739656238349,-1526.08793602,8.848e-05,2]
[353213244,1739656238363,-114.00206398,8.848e-05,2]
[353213245,1739656238373,-332.20626681,8.848e-05,2]
[353213246,1739656238385,-167.79373319,8.848e-05,2]
[353213247,1739656238396,-3498.08,8.848e-05,2]
[353213248,1739656238406,-500.0,8.849e-05,2]
[353213249,1739656238415,-442.32477193,8.849e-05,2]
[353213250,1739656238427,-57.67522807,8.849e-05,2]
[353213251,1739656238437,-500.0,8.849e-05,2]
[353213252,1739656238447,-500.0,8.849e-05,2]
[353213253,1739656238457,-224.20315393,8.849e-05,2]
[353213349,1739656242970,374.86910018,8.843e-05,2]
[353213438,1739656258425,772.08,8.843e-05,2]
[353213440,1739656276717,250.0,7.851e-05,2]
[353213442,1739656755491,332.7552625,8.811e-05,2]
[353213443,1739656800494,221.8368416,8.765e-05,2]
[353213444,1739656845537,221.8368417,8.765e-05,2]
[353213445,1739656857174,168.32175617,8.356e-05,2]
[353213446,1739656857283,168.32175617,8.438e-05,2]
[353213447,1739656857393,168.32175617,8.521e-05,2]
[353213448,1739656857515,168.32175617,8.575e-05,2]
[353213449,1739656857633,168.32175617,8.658e-05,2]
[353213450,1739656857750,168.32175617,8.74e-05,2]
[353213451,1739656857861,168.32175617,8.822e-05,2]
[353213452,1739656890496,221.8368417,8.765e-05,2]
[353213454,1739657402544,300.0,8.843e-05,2]
[353213472,1739657432182,-374.86910018,8.844e-05,2]
[353213486,1739657438082,-125.13089982,8.844e-05,2]
[353213487,1739657438093,-2393.41,8.844e-05,2]
[353213488,1739657438102,-500.0,8.844e-05,2]
[353213489,1739657438111,-643.45,8.844e-05,2]
[353213490,1739657438121,-500.0,8.844e-05,2]
[353213491,1739657438130,-500.0,8.844e-05,2]
[353213492,1739657438139,-500.0,8.844e-05,2]
[353213493,1739657438153,-1609.4,8.844e-05,2]
[353213494,1739657438162,-500.0,8.845e-05,2]
[353213495,1739657438174,-500.0,8.845e-05,2]
[353213496,1739657438183,-241.95912168,8.845e-05,2]
[353213497,1739657438195,-258.04087832,8.845e-05,2]
[353213498,1739657438203,-500.0,8.845e-05,2]
[353213499,1739657438215,-241.95912168,8.845e-05,2]
[353213501,1739657438227,-258.04087832,8.845e-05,2]
[353213503,1739657438236,-14.03912168,8.845e-05,2]
[353213508,1739657438265,-500.0,8.844e-05,2]
[353213510,1739657438274,-485.96087832,8.845e-05,2]
[353213513,1739657438283,-500.0,8.845e-05,2]
[353213516,1739657438292,-500.0,8.845e-05,2]
[353213519,1739657438302,-500.0,8.845e-05,2]
[353213521,1739657438311,-500.0,8.845e-05,2]
[353213523,1739657438320,-500.0,8.845e-05,2]
[353213525,1739657438330,-500.0,8.845e-05,2]
[353213526,1739657438339,-500.0,8.845e-05,2]
[353213527,1739657438349,-1097.1,8.845e-05,2]
[353213528,1739657438358,-500.0,8.845e-05,2]
[353213529,1739657438367,-500.0,8.845e-05,2]
[353213530,1739657438376,-500.0,8.845e-05,2]
[353213531,1739657438385,-500.0,8.845e-05,2]
[353213532,1739657438394,-500.0,8.845e-05,2]
[353213533,1739657438404,-500.0,8.845e-05,2]
[353213534,1739657438413,-500.0,8.845e-05,2]
[353213535,1739657438423,-500.0,8.845e-05,2]
[353213536,1739657438433,-255.3083535,8.845e-05,2]
[353213537,1739657438573,-1011.22,8.845e-05,2]
[353213538,1739657438584,-501.47660146,8.845e-05,2]
[353213539,1739657438594,-500.0,8.845e-05,2]
[353213540,1739657438604,-500.0,8.845e-05,2]
[353213541,1739657438613,-500.0,8.845e-05,2]
[353213542,1739657438622,-500.0,8.845e-05,2]
[353213543,1739657438632,-500.0,8.845e-05,2]
[353213544,1739657438641,-528.34,8.845e-05,2]
[353213545,1739657438650,-500.0,8.845e-05,2]
[353213546,1739657438660,-500.0,8.845e-05,2]
[353213547,1739657438669,-500.0,8.845e-05,2]
[353213548,1739657438678,-500.0,8.845e-05,2]
[353213549,1739657438687,-1591.89,8.845e-05,2]
[353213550,1739657438697,-500.0,8.845e-05,2]
[353213551,1739657438706,-500.0,8.845e-05,2]
[353213552,1739657438715,-1037.84,8.845e-05,2]
[353213553,1739657438724,-500.0,8.845e-05,2]
[353213554,1739657438733,-500.0,8.845e-05,2]
[353213555,1739657438744,-500.0,8.845e-05,2]
[353213556,1739657438753,-500.0,8.845e-05,2]
[353213557,1739657438762,-500.0,8.845e-05,2]
[353213558,1739657438771,-500.0,8.845e-05,2]
[353213559,1739657438779,-500.0,8.845e-05,2]
[353213560,1739657438788,-500.0,8.845e-05,2]
[353213561,1739657438797,-373.31125224,8.845e-05,2]
[353213562,1739657438806,-500.0,8.845e-05,2]
[353213563,1739657438815,-1040.73,8.845e-05,2]
[353213564,1739657438824,-500.0,8.845e-05,2]
[353213565,1739657438833,-500.0,8.845e-05,2]
[353213566,1739657438842,-500.0,8.845e-05,2]
[353213567,1739657438851,-500.0,8.845e-05,2]
[353213568,1739657438860,-500.0,8.845e-05,2]
[353213569,1739657438869,-500.0,8.845e-05,2]
[353213570,1739657438877,-500.0,8.845e-05,2]
[353213571,1739657438887,-265.36073785,8.845e-05,2]
[353213572,1739657438895,-500.0,8.845e-05,2]
[353213573,1739657438905,-500.0,8.845e-05,2]
[353213574,1739657438914,-1621.65,8.845e-05,2]
[353213575,1739657438923,-605.70514346,8.845e-05,2]
[353213576,1739657438932,-500.0,8.845e-05,2]
[353213577,1739657438941,-500.0,8.845e-05,2]
[353213578,1739657438951,-500.0,8.845e-05,2]
[353213579,1739657438959,-500.0,8.845e-05,2]
[353213580,1739657438970,-500.0,8.845e-05,2]
[353213581,1739657438980,-500.0,8.845e-05,2]
[353213582,1739657438989,-500.0,8.845e-05,2]
[353213583,1739657438998,-4811.81,8.845e-05,2]
[353213584,1739657439008,-500.0,8.845e-05,2]
[353213585,1739657439017,-168.20702581,8.845e-05,2]
[353213586,1739657439026,-500.0,8.845e-05,2]
[353213587,1739657439036,-500.0,8.845e-05,2]
[353213588,1739657439045,-500.0,8.845e-05,2]
[353213589,1739657439054,-500.0,8.845e-05,2]
[353213590,1739657439063,-500.0,8.845e-05,2]
[353213591,1739657439073,-500.0,8.845e-05,2]
[353213592,1739657439082,-500.0,8.845e-05,2]
[353213593,1739657439091,-296.78825191,8.845e-05,2]
[353213594,1739657439100,-656.08533568,8.845e-05,2]
[353213595,1739657439113,-444.75466432,8.845e-05,2]
[353213596,1739657439123,-500.0,8.845e-05,2]
[353213597,1739657439132,-2871.04130768,8.845e-05,2]
[353213598,1739657439144,-3485.25869232,8.845e-05,2]
[353213599,1739657439153,-6116.34130768,8.845e-05,2]
[353213600,1739657439164,-239.95869232,8.845e-05,2]
[353213601,1739657439178,-260.04130768,8.845e-05,2]
[353213612,1739657440187,-6096.25869232,8.845e-05,2]
[353213613,1739657440197,-3499.47,8.845e-05,2]
[353213614,1739657440207,-3868.08,8.845e-05,2]
[353213615,1739657440218,-500.0,8.845e-05,2]
[353213616,1739657440228,-1858.95,8.845e-05,2]
[353213617,1739657440238,-500.0,8.845e-05,2]
[353213618,1739657440250,-500.0,8.845e-05,2]
[353213619,1739657440261,-500.0,8.845e-05,2]
[353213620,1739657440271,-1501.13,8.845e-05,2]
[353213621,1739657440280,-500.0,8.845e-05,2]
[353213622,1739657440290,-500.0,8.845e-05,2]
[353213623,1739657440300,-709.63,8.845e-05,2]
[353213625,1739657440310,-500.0,8.845e-05,2]
[353213628,1739657440331,-500.0,8.845e-05,2]
[353213630,1739657440341,-500.0,8.845e-05,2]
[353213632,1739657440351,-500.0,8.845e-05,2]
[353213634,1739657440361,-500.0,8.845e-05,2]
[353213636,1739657440371,-500.0,8.845e-05,2]
[353213638,1739657440381,-863.54,8.845e-05,2]
[353213639,1739657440391,-500.0,8.845e-05,2]
[353213640,1739657440402,-1514.6,8.845e-05,2]
[353213641,1739657440411,-500.0,8.845e-05,2]
[353213642,1739657440423,-500.0,8.845e-05,2]
[353213643,1739657440432,-500.0,8.845e-05,2]
[353213644,1739657440443,-500.0,8.845e-05,2]
[353213645,1739657440452,-500.0,8.845e-05,2]
[353213646,1739657440462,-1983.09,8.845e-05,2]
[353213647,1739657440473,-500.0,8.845e-05,2]
[353213648,1739657440483,-500.0,8.845e-05,2]
[353213649,1739657440493,-500.0,8.845e-05,2]
[353213650,1739657440503,-500.0,8.845e-05,2]
[353213651,1739657440512,-500.0,8.845e-05,2]
[353213652,1739657440522,-645.38,8.845e-05,2]
[353213653,1739657440532,-500.0,8.845e-05,2]
[353213654,1739657440542,-500.0,8.845e-05,2]
[353213655,1739657440551,-500.0,8.845e-05,2]
[353213656,1739657440561,-500.0,8.845e-05,2]
[353213657,1739657440571,-574.65,8.845e-05,2]
[353213658,1739657440580,-500.0,8.845e-05,2]
[353213659,1739657440590,-500.0,8.845e-05,2]
[353213660,1739657440600,-500.0,8.845e-05,2]
[353213661,1739657440611,-932.79,8.845e-05,2]
[353213662,1739657440621,-500.0,8.845e-05,2]
[353213663,1739657440631,-500.0,8.845e-05,2]
[353213664,1739657440640,-500.0,8.845e-05,2]
[353213665,1739657440650,-220.70778588,8.845e-05,2]
[353213666,1739657440661,-5798.13,8.845e-05,2]
[353213667,1739657440670,-500.0,8.845e-05,2]
[353213668,1739657440681,-500.0,8.845e-05,2]
[353213669,1739657440690,-572.63,8.845e-05,2]
[353213670,1739657440700,-2240.11,8.845e-05,2]
[353213671,1739657440710,-500.0,8.845e-05,2]
[353213672,1739657440720,-500.0,8.845e-05,2]
[353213673,1739657440730,-500.0,8.845e-05,2]
[353213674,1739657440740,-757.02,8.845e-05,2]
[353213675,1739657440750,-500.0,8.845e-05,2]
[353213676,1739657440760,-500.0,8.845e-05,2]
[353213677,1739657440769,-500.0,8.845e-05,2]
[353213678,1739657440779,-1459.08,8.845e-05,2]
[353213679,1739657440789,-500.0,8.845e-05,2]
[353213680,1739657440799,-500.0,8.845e-05,2]
[353213681,1739657440809,-1420.44,8.845e-05,2]
[353213682,1739657440819,-500.0,8.845e-05,2]
[353213683,1739657440829,-500.0,8.845e-05,2]
[353213684,1739657440839,-500.0,8.845e-05,2]
[353213685,1739657440849,-2738.7,8.845e-05,2]
[353213686,1739657440859,-500.0,8.845e-05,2]
[353213687,1739657440870,-500.0,8.845e-05,2]
[353213688,1739657440880,-500.0,8.845e-05,2]
[353213689,1739657440891,-1253.49,8.845e-05,2]
[353213690,1739657440902,-500.0,8.845e-05,2]
[353213691,1739657440912,-500.0,8.845e-05,2]
[353213692,1739657440922,-500.0,8.845e-05,2]
[353213693,1739657440933,-500.0,8.845e-05,2]
[353213694,1739657440943,-869.93,8.845e-05,2]
[353213695,1739657440953,-437.77467859,8.845e-05,2]
[353213696,1739657440963,-961.25,8.845e-05,2]
[353213697,1739657441085,-500.0,8.845e-05,2]
[353213698,1739657441113,-500.0,8.845e-05,2]
[353213699,1739657441122,-500.0,8.845e-05,2]
[353213700,1739657441132,-500.0,8.845e-05,2]
[353213701,1739657441142,-945.33,8.845e-05,2]
[353213702,1739657441153,-634.92,8.845e-05,2]
[353213703,1739657441163,-685.91,8.845e-05,2]
[353213704,1739657441177,-1571.75,8.845e-05,2]
[353213705,1739657441186,-500.0,8.845e-05,2]
[353213706,1739657441195,-500.0,8.845e-05,2]
[353213707,1739657441205,-1176.61,8.845e-05,2]
[353213708,1739657441214,-500.0,8.845e-05,2]
[353213709,1739657441225,-1954.14,8.845e-05,2]
[353213710,1739657441234,-500.0,8.845e-05,2]
[353213711,1739657441243,-1016.63,8.845e-05,2]
[353213712,1739657441253,-3667.77,8.845e-05,2]
[353213713,1739657441263,-2773.48,8.845e-05,2]
[353213714,1739657441273,-1213.65,8.845e-05,2]
[353213715,1739657441282,-220.70778587,8.846e-05,2]
[353213716,1739657441292,-500.0,8.846e-05,2]
[353213717,1739657441302,-507.80469073,8.846e-05,2]
[353213718,1739657441312,-500.0,8.846e-05,2]
[353213719,1739657441322,-500.0,8.846e-05,2]
[353213720,1739657441331,-500.0,8.846e-05,2]
[353213721,1739657441341,-500.0,8.846e-05,2]
[353213722,1739657441351,-500.0,8.846e-05,2]
[353213723,1739657441360,-514.01201223,8.846e-05,2]
[353213724,1739657441370,-500.0,8.846e-05,2]
[353213725,1739657441380,-500.0,8.846e-05,2]
[353213726,1739657441390,-500.0,8.846e-05,2]
[353213727,1739657441400,-500.0,8.846e-05,2]
[353213728,1739657441410,-500.0,8.846e-05,2]
[353213729,1739657441420,-481.91579717,8.846e-05,2]
[353213730,1739657441430,-500.0,8.846e-05,2]
[353213731,1739657441439,-500.0,8.846e-05,2]
[353213732,1739657441449,-234.68879614,8.846e-05,2]
[353213733,1739657441458,-500.0,8.846e-05,2]
[353213734,1739657441468,-500.0,8.846e-05,2]
[353213735,1739657441478,-500.0,8.846e-05,2]
[353213736,1739657441487,-500.0,8.846e-05,2]
[353213737,1739657441497,-500.0,8.846e-05,2]
[353213738,1739657441507,-500.0,8.846e-05,2]
[353213739,1739657441518,-977.51,8.846e-05,2]
[353213740,1739657441527,-277.02030258,8.846e-05,2]
[353213741,1739657441537,-500.0,8.846e-05,2]
[353213742,1739657441547,-500.0,8.846e-05,2]
[353213743,1739657441557,-532.23466181,8.846e-05,2]
[353213744,1739657441567,-500.0,8.846e-05,2]
[353213745,1739657441576,-500.0,8.846e-05,2]
[353213746,1739657441586,-500.0,8.846e-05,2]
[353213747,1739657441595,-501.01023434,8.846e-05,2]
[353213748,1739657441606,-500.0,8.846e-05,2]
[353213749,1739657441615,-500.0,8.846e-05,2]
[353213750,1739657441625,-500.0,8.846e-05,2]
[353213751,1739657441634,-500.0,8.846e-05,2]
[353213752,1739657441643,-500.0,8.846e-05,2]
[353213753,1739657441654,-500.0,8.846e-05,2]
[353213754,1739657441664,-500.0,8.846e-05,2]
[353213755,1739657441673,-500.0,8.846e-05,2]
[353213756,1739657441683,-500.0,8.846e-05,2]
[353213757,1739657441692,-500.0,8.846e-05,2]
[353213758,1739657441702,-500.0,8.846e-05,2]
[353213759,1739657441711,-500.0,8.846e-05,2]
[353213760,1739657441721,-273.34928931,8.846e-05,2]
[353213761,1739657441731,-559.44766365,8.846e-05,2]
[353213762,1739657441740,-549.33162169,8.846e-05,2]
[353213763,1739657441750,-500.0,8.846e-05,2]
[353213764,1739657441760,-500.0,8.846e-05,2]
[353213765,1739657441769,-505.819076,8.846e-05,2]
[353213766,1739657441778,-500.0,8.846e-05,2]
[353213767,1739657441788,-500.0,8.846e-05,2]
[353213768,1739657441797,-500.0,8.846e-05,2]
[353213769,1739657441806,-500.0,8.846e-05,2]
[353213770,1739657441815,-506.77494165,8.846e-05,2]
[353213771,1739657441824,-243.27803861,8.846e-05,2]
[353213772,1739657441834,-547.29364246,8.846e-05,2]
[353213773,1739657441844,-685.48,8.846e-05,2]
[353213774,1739657441853,-500.0,8.846e-05,2]
[353213775,1739657441863,-170.29462702,8.846e-05,2]
[353213776,1739657441871,-500.0,8.846e-05,2]
[353213777,1739657441881,-500.0,8.846e-05,2]
[353213778,1739657441890,-825.99,8.846e-05,2]
[353213779,1739657441899,-500.0,8.846e-05,2]
[353213780,1739657441909,-500.0,8.846e-05,2]
[353213781,1739657441919,-500.0,8.846e-05,2]
[353213782,1739657441928,-500.0,8.846e-05,2]
[353213783,1739657441937,-500.0,8.846e-05,2]
[353213784,1739657441947,-500.0,8.846e-05,2]
[353213785,1739657441956,-500.0,8.846e-05,2]
[353213786,1739657441965,-500.0,8.846e-05,2]
[353213787,1739657441975,-500.0,8.846e-05,2]
[353213788,1739657441984,-500.0,8.846e-05,2]
[353213789,1739657441993,-779.66,8.846e-05,2]
[353213790,1739657442003,-935.64,8.846e-05,2]
[353213791,1739657442013,-500.0,8.846e-05,2]
[353213792,1739657442023,-511.07091318,8.846e-05,2]
[353213793,1739657442033,-500.0,8.846e-05,2]
[353213794,1739657442042,-500.0,8.846e-05,2]
[353213795,1739657442051,-500.0,8.846e-05,2]
[353213796,1739657442060,-500.0,8.846e-05,2]
[353213797,1739657442069,-500.0,8.846e-05,2]
[353213798,1739657442078,-793.19,8.846e-05,2]
[353213799,1739657442087,-1227.61,8.846e-05,2]
[353213800,1739657442097,-500.0,8.846e-05,2]
[353213801,1739657442107,-500.0,8.846e-05,2]
[353213802,1739657442116,-500.0,8.846e-05,2]
[353213803,1739657442126,-500.0,8.846e-05,2]
[353213804,1739657442136,-500.0,8.846e-05,2]
[353213805,1739657442145,-500.0,8.846e-05,2]
[353213806,1739657442156,-6356.3,8.846e-05,2]
[353213807,1739657442165,-6356.3,8.846e-05,2]
[353213808,1739657442179,-33189.15577227,8.846e-05,2]
[353213809,1739657442193,-4490.95010336,8.846e-05,2]
[353213810,1739657442211,-438.16412437,8.846e-05,2]
[353213811,1739657442222,-3339.75518505,8.846e-05,2]
[353213834,1739657443320,-3016.54481495,8.846e-05,2]
[353213835,1739657443330,-6356.3,8.846e-05,2]
[353213836,1739657443340,-6356.3,8.846e-05,2]
[353213837,1739657443350,-6356.3,8.846e-05,2]
[353213838,1739657443360,-6356.3,8.846e-05,2]
[353213839,1739657443371,-6356.3,8.846e-05,2]
[353213840,1739657443381,-6356.3,8.846e-05,2]
[353213841,1739657443391,-6356.3,8.846e-05,2]
[353213842,1739657443401,-6356.3,8.846e-05,2]
[353213843,1739657443411,-6356.3,8.846e-05,2]
[353213844,1739657443420,-6356.3,8.846e-05,2]
[353213845,1739657443430,-6356.3,8.846e-05,2]
[353213846,1739657443439,-518.02104124,8.846e-05,2]
[353213847,1739657443448,-500.0,8.846e-05,2]
[353213848,1739657443458,-2222.8,8.846e-05,2]
[353213849,1739657443468,-509.01,8.846e-05,2]
[353213851,1739657443477,-1246.4,8.846e-05,2]
[353213853,1739657443486,-1558.17,8.846e-05,2]
[353213854,1739657443496,-17304.94,8.846e-05,2]
[353213855,1739657443506,-500.0,8.846e-05,2]
[353213856,1739657443516,-500.0,8.846e-05,2]
[353213857,1739657443526,-995.49,8.846e-05,2]
[353213858,1739657443536,-797.94,8.846e-05,2]
[353213859,1739657443546,-2207.81,8.846e-05,2]
[353213860,1739657443556,-500.0,8.846e-05,2]
[353213861,1739657443566,-500.0,8.846e-05,2]
[353213862,1739657443575,-500.0,8.846e-05,2]
[353213863,1739657443585,-500.0,8.846e-05,2]
[353213864,1739657443594,-500.0,8.846e-05,2]
[353213865,1739657443604,-681.23,8.846e-05,2]
[353213866,1739657443614,-500.0,8.846e-05,2]
[353213867,1739657443624,-783.2,8.846e-05,2]
[353213868,1739657443634,-220.70778587,8.846e-05,2]
[353213869,1739657443644,-500.0,8.846e-05,2]
[353213870,1739657443654,-1186.91,8.846e-05,2]
[353213871,1739657443663,-500.0,8.846e-05,2]
[353213872,1739657443672,-500.0,8.846e-05,2]
[353213873,1739657443682,-500.0,8.846e-05,2]
[353213874,1739657443691,-500.0,8.846e-05,2]
[353213875,1739657443701,-500.0,8.846e-05,2]
[353213876,1739657443710,-665.1,8.846e-05,2]
[353213877,1739657443720,-500.0,8.846e-05,2]
[353213878,1739657443730,-500.0,8.846e-05,2]
[353213879,1739657443739,-500.0,8.846e-05,2]
[353213880,1739657443749,-269.19442952,8.846e-05,2]
[353213881,1739657443759,-500.0,8.846e-05,2]
[353213882,1739657443769,-1113.08,8.846e-05,2]
[353213883,1739657443778,-500.0,8.846e-05,2]
[353213884,1739657443788,-432.62094798,8.846e-05,2]
[353213885,1739657443797,-500.0,8.846e-05,2]
[353213886,1739657443807,-220.70778587,8.847e-05,2]
[353213887,1739657443816,-500.0,8.847e-05,2]
[353213888,1739657443826,-500.0,8.847e-05,2]
[353213889,1739657443836,-500.0,8.847e-05,2]
[353213890,1739657443846,-500.0,8.847e-05,2]
[353213891,1739657443856,-500.0,8.847e-05,2]
[353213892,1739657443865,-500.0,8.847e-05,2]
[353213893,1739657443875,-500.0,8.847e-05,2]
[353213894,1739657443884,-500.0,8.847e-05,2]
[353213895,1739657443894,-500.0,8.847e-05,2]
[353213896,1739657443904,-500.0,8.847e-05,2]
[353213897,1739657443913,-501.25070969,8.847e-05,2]